bitfinex-derivatives/quotes_BTCF0:USTF0_20250108
["timestamp","ask_amount","ask_price","bid_price","bid_amount"]
[1736310727320,0.3608,96572.0,96571.0,0.46476]
[1736310727523,0.8608,96572.0,96571.0,0.46476]
[1736310727721,0.5,96570.0,96557.0,0.2206]
[1736310728032,0.8608,96562.0,96557.0,0.2206]
[1736310728229,0.8608,96562.0,96551.0,0.00155336]
[1736310728430,0.5,96560.0,96551.0,0.00155336]
[1736310728624,0.5,96552.0,96551.0,0.00155336]
[1736310728823,0.5,96552.0,96551.0,0.07623313]
[1736310729130,0.8608,96562.0,96557.0,0.05179]
[1736310729635,0.5,96561.0,96559.0,0.051789]
[1736310730225,0.5,96561.0,96552.0,0.10337735]
[1736310730424,0.5,96561.0,96556.0,0.05179]
[1736310732422,0.001,96561.0,96556.0,0.05179]
[1736310732622,0.501,96561.0,96552.0,0.10337735]
[1736310732823,0.001,96552.0,96551.0,0.02544013]
[1736310733033,0.501,96552.0,96551.0,0.02544013]
[1736310733525,0.001,96552.0,96551.0,0.02544013]
[1736310733731,0.11154766,96560.0,96552.0,0.001]
[1736310733931,0.1102,96559.0,96552.0,0.001]
[1736310734520,0.001,96552.0,96551.0,0.001]
[1736310735131,0.002,96552.0,96551.0,0.001]
[1736310736123,0.001,96552.0,96548.0,0.0752478]
[1736310737231,0.002,96552.0,96551.0,0.001]
[1736310737927,0.002,96552.0,96548.0,0.0752478]
[1736310737928,0.002,96552.0,96549.0,0.051794]
[1736310738133,0.001,96552.0,96549.0,0.051794]
[1736310738334,0.002,96552.0,96549.0,0.051794]
[1736310739434,0.002,96552.0,96551.0,0.001]
[1736310740226,0.002,96552.0,96549.0,0.052794]
[1736310741422,0.001,96552.0,96549.0,0.052794]
[1736310741623,0.002,96552.0,96549.0,0.052794]
[1736310742126,0.002,96552.0,96551.0,0.001]
[1736310742631,0.5,96561.0,96551.0,0.001]
[1736310742838,0.5,96568.0,96557.0,0.3608]
[1736310743136,0.5,96578.0,96567.0,0.051785]
[1736310743329,0.5,96570.0,96568.0,0.051784]
[1736310743725,0.1108,96580.0,96568.0,0.3608]
[1736310743922,0.6108,96580.0,96570.0,0.10337735]
[1736310744431,0.5,96574.0,96570.0,0.10337735]
[1736310744735,0.1108,96580.0,96570.0,0.10337735]
[1736310744936,0.8608,96574.0,96565.0,0.051786]
[1736310745137,0.5,96570.0,96565.0,0.051786]
[1736310745437,0.5,96564.0,96557.0,0.07538128]
[1736310745631,0.1132,96563.0,96558.0,0.051789]
[1736310745828,0.1132,96563.0,96559.0,0.051789]
[1736310746231,0.1132,96563.0,96551.0,0.07593612]
[1736310746534,0.5,96553.0,96551.0,0.07493612]
[1736310746728,0.1132,96563.0,96551.0,0.02314312]
[1736310746929,0.1132,96563.0,96556.0,0.3608]
[1736310747225,0.1132,96563.0,96558.0,0.051789]
[1736310747426,0.1142,96563.0,96559.0,0.002]
[1736310748131,0.6152,96563.0,96559.0,0.002]
[1736310748337,0.1152,96563.0,96559.0,0.002]
[1736310748540,0.6152,96563.0,96559.0,0.002]
[1736310748743,0.6152,96563.0,96559.0,0.003]
[1736310749039,0.6142,96563.0,96559.0,0.052789]
[1736310749227,0.6152,96563.0,96559.0,0.052789]
[1736310749932,0.6152,96563.0,96559.0,0.053789]
[1736310750137,0.6152,96563.0,96559.0,0.002]
[1736310750438,0.6152,96563.0,96561.0,0.051788]
[1736310751836,0.6152,96563.0,96561.0,0.052788]
[1736310752439,0.6152,96563.0,96561.0,0.053788]
[1736310755645,0.6152,96563.0,96561.0,0.002]
[1736310756347,0.6152,96563.0,96559.0,0.02379483]
[1736310756543,0.6152,96563.0,96548.0,0.2206]
[1736310756847,0.3608,96556.0,96548.0,0.2206]
[1736310758041,0.3618,96556.0,96548.0,0.2216]
[1736310758237,0.3618,96556.0,96548.0,0.24535851]
[1736310758445,0.001,96556.0,96555.0,0.051791]
[1736310758840,0.001,96556.0,96555.0,0.412591]
[1736310759042,0.49880114,96566.0,96555.0,0.997591]
[1736310759241,0.49009,96569.0,96568.0,0.051784]
[1736310759443,0.6134,96575.0,96568.0,0.051784]
[1736310759945,0.6134,96575.0,96570.0,0.051783]
[1736310760138,0.5,96575.0,96573.0,0.051781]
[1736310762841,0.5,96575.0,96573.0,0.07502368]
[1736310763646,0.5,96575.0,96573.0,0.07702368]
[1736310768856,0.5,96575.0,96573.0,0.07802368]
[1736310769752,0.5,96575.0,96573.0,0.07502368]
[1736310769956,0.5,96575.0,96573.0,0.07702368]
[1736310771242,0.5,96575.0,96573.0,0.07602368]
[1736310771452,0.5,96575.0,96573.0,0.07702368]
[1736310772948,0.5,96575.0,96573.0,0.07602368]
[1736310773255,0.5,96575.0,96573.0,0.07702368]
[1736310773554,0.5,96575.0,96573.0,0.07602368]
[1736310773754,0.5,96575.0,96573.0,0.07702368]
[1736310775749,0.5,96575.0,96573.0,0.07602368]
[1736310776260,0.5,96575.0,96573.0,0.07702368]
[1736310776753,0.8608,96575.0,96573.0,0.02524268]
[1736310778861,0.8608,96575.0,96573.0,0.02424268]
[1736310779356,0.8608,96575.0,96573.0,0.001]
[1736310781357,0.5,96575.0,96573.0,0.001]
[1736310781757,0.8608,96576.0,96573.0,0.001]
[1736310781959,0.3608,96576.0,96573.0,0.001]
[1736310782157,0.8608,96576.0,96573.0,0.001]
[1736310782560,0.5,96575.0,96573.0,0.001]
[1736310782755,0.5,96575.0,96569.0,0.051783]
[1736310782953,0.3608,96576.0,96573.0,0.001]
[1736310783154,0.5,96575.0,96573.0,0.001]
[1736310783655,0.3608,96576.0,96573.0,0.001]
[1736310783852,0.5,96575.0,96573.0,0.001]
[1736310784055,0.3608,96576.0,96569.0,0.052783]
[1736310784254,0.5,96575.0,96569.0,0.052783]
[1736310784645,0.3608,96576.0,96569.0,0.052783]
[1736310784850,0.5,96575.0,96569.0,0.052783]
[1736310785362,0.3608,96576.0,96569.0,0.052783]
[1736310785563,0.5,96575.0,96569.0,0.051783]
[1736310785861,0.3608,96576.0,96573.0,0.001]
[1736310786062,0.5,96575.0,96573.0,0.001]
[1736310786262,0.5,96575.0,96569.0,0.001]
[1736310786459,0.3608,96576.0,96569.0,0.001]
[1736310786665,0.5,96575.0,96569.0,0.001]
[1736310786966,0.3608,96576.0,96569.0,0.001]
[1736310787352,0.3608,96570.0,96569.0,0.001]
[1736310787858,0.8608,96570.0,96569.0,0.001]
[1736310788257,0.3608,96570.0,96569.0,0.001]
[1736310788456,0.8608,96570.0,96569.0,0.001]
[1736310788659,0.8608,96570.0,96569.0,0.002]
[1736310788871,0.3608,96570.0,96569.0,0.001]
[1736310789068,0.8608,96570.0,96569.0,0.002]
[1736310789364,0.3608,96570.0,96569.0,0.002]
[1736310789566,0.8608,96570.0,96569.0,0.002]
[1736310789955,0.3608,96570.0,96569.0,0.002]
[1736310790160,0.8608,96570.0,96569.0,0.002]
[1736310790465,0.3608,96570.0,96569.0,0.002]
[1736310790661,0.3618,96570.0,96569.0,0.002]
[1736310790863,0.8618,96570.0,96569.0,0.002]
[1736310791058,0.3618,96570.0,96569.0,0.002]
[1736310791258,0.8618,96570.0,96569.0,0.002]
[1736310791667,0.48928746,96570.0,96569.0,0.002]
[1736310791969,0.98928746,96570.0,96565.0,0.10337735]
[1736310792358,0.48928746,96570.0,96565.0,0.10337735]
[1736310792652,0.98928746,96570.0,96565.0,0.10337735]
[1736310792858,0.48928746,96570.0,96565.0,0.10337735]
[1736310793158,0.12748746,96569.0,96565.0,0.10437735]
[1736310793559,0.1188,96568.0,96565.0,0.13342377]
[1736310793767,0.1188,96568.0,96565.0,0.03004642]
[1736310793969,0.118,96567.0,96565.0,0.03004642]
[1736310794465,0.618,96567.0,96565.0,0.03004642]
[1736310795964,0.618,96567.0,96565.0,0.02904642]
[1736310796272,0.618,96567.0,96561.0,0.051788]
[1736310796761,0.619,96567.0,96561.0,0.051788]
[1736310797671,0.618,96567.0,96561.0,0.051788]
[1736310797974,0.62,96567.0,96561.0,0.052788]
[1736310798672,0.3608,96562.0,96561.0,0.052788]
[1736310799173,0.3608,96562.0,96561.0,0.08127849]
[1736310800070,0.3618,96562.0,96561.0,0.08127849]
[1736310800869,0.3608,96585.0,96571.0,0.051782]
[1736310801060,0.11,96584.0,96575.0,0.10337735]
[1736310801265,0.5,96575.0,96570.0,0.15516035]
[1736310801466,0.5,96574.0,96570.0,0.15516035]
[1736310803475,0.5,96574.0,96570.0,0.15616035]
[1736310803863,0.5,96574.0,96571.0,0.051782]
[1736310805267,0.5,96574.0,96573.0,0.051782]
[1736310805670,0.5,96576.0,96575.0,0.05178]
[1736310807770,0.501,96576.0,96575.0,0.05278]
[1736310808469,0.502,96576.0,96575.0,0.05378]
[1736310809273,0.501,96576.0,96575.0,0.05278]
[1736310809471,0.502,96576.0,96575.0,0.05378]
[1736310809780,0.502,96576.0,96575.0,0.05278]
[1736310810077,0.502,96576.0,96575.0,0.05378]
[1736310810473,0.501,96576.0,96575.0,0.05278]
[1736310810672,0.502,96576.0,96575.0,0.05378]
[1736310810876,0.502,96576.0,96575.0,0.27438]
[1736310812172,0.502,96576.0,96575.0,0.27338]
[1736310812471,0.502,96576.0,96575.0,0.27438]
[1736310812882,0.502,96576.0,96575.0,0.30374722]
[1736310813069,0.001,96576.0,96575.0,0.30274722]
[1736310813269,0.002,96576.0,96575.0,0.30374722]
[1736310814280,0.002,96576.0,96575.0,0.25196722]
[1736310815481,0.001,96576.0,96575.0,0.25196722]
[1736310816073,0.001,96576.0,96562.0,0.46624]
[1736310816273,0.3608,96569.0,96562.0,0.46476]
[1736310816977,0.8608,96569.0,96562.0,0.46476]
[1736310817180,0.3608,96564.0,96550.0,0.13217099]
[1736310817371,0.3608,96552.0,96550.0,0.13217099]
[1736310817576,0.3608,96552.0,96550.0,0.02907377]
[1736310817779,0.3608,96552.0,96543.0,0.272397]
[1736310818083,0.8608,96552.0,96543.0,0.272397]
[1736310818377,0.3608,96552.0,96543.0,0.272397]
[1736310818583,0.3618,96552.0,96550.0,0.001]
[1736310818782,0.8618,96552.0,96550.0,0.001]
[1736310819281,0.1107,96551.0,96550.0,0.001]
[1736310819882,0.6107,96551.0,96550.0,0.001]
[1736310820080,0.1107,96551.0,96543.0,0.02857205]
[1736310820281,0.1107,96551.0,96542.0,0.10309722]
[1736310820282,0.1077,96550.0,96542.0,0.10309722]
[1736310821182,0.6077,96550.0,96542.0,0.10309722]
[1736310821482,0.1077,96550.0,96542.0,0.10309722]
[1736310821679,0.6087,96550.0,96542.0,0.10309722]
[1736310821894,0.6087,96550.0,96542.0,0.13241428]
[1736310822086,0.1087,96550.0,96542.0,0.13241428]
[1736310822386,0.6087,96550.0,96542.0,0.13241428]
[1736310822778,0.1097,96550.0,96542.0,0.13241428]
[1736310822978,0.6097,96550.0,96542.0,0.13241428]
[1736310823180,0.1097,96550.0,96542.0,0.13241428]
[1736310823588,0.6097,96550.0,96542.0,0.13241428]
[1736310823788,0.1097,96550.0,96542.0,0.13241428]
[1736310824180,0.6097,96550.0,96542.0,0.13241428]
[1736310824382,0.1097,96550.0,96542.0,0.13241428]
[1736310824581,0.6097,96550.0,96542.0,0.13241428]
[1736310824990,0.1097,96550.0,96542.0,0.13241428]
[1736310825288,0.6097,96550.0,96542.0,0.13241428]
[1736310825682,0.1097,96550.0,96542.0,0.13241428]
[1736310825886,0.6097,96550.0,96542.0,0.13241428]
[1736310826187,0.1097,96550.0,96542.0,0.13241428]
[1736310826588,0.6097,96550.0,96542.0,0.13241428]
[1736310826790,0.1097,96550.0,96542.0,0.13241428]
[1736310826991,0.6097,96550.0,96542.0,0.13241428]
[1736310827480,0.1097,96550.0,96542.0,0.13241428]
[1736310827680,0.6097,96550.0,96542.0,0.13241428]
[1736310827991,0.1097,96550.0,96542.0,0.13241428]
[1736310828391,0.6097,96550.0,96542.0,0.13241428]
[1736310828691,0.1097,96550.0,96542.0,0.13241428]
[1736310828887,0.6097,96550.0,96542.0,0.13241428]
[1736310829288,0.1097,96550.0,96542.0,0.13241428]
[1736310829489,0.6097,96550.0,96542.0,0.13241428]
[1736310829890,0.1097,96550.0,96542.0,0.13241428]
[1736310830092,0.6097,96550.0,96542.0,0.13241428]
[1736310835299,0.6097,96550.0,96542.0,0.02931706]
[1736310835595,0.6097,96550.0,96541.0,0.00155345]
[1736310836692,0.6097,96550.0,96541.0,0.03139341]
[1736310836906,0.6097,96550.0,96541.0,0.03239341]
[1736310836907,0.3608,96542.0,96541.0,0.03239341]
[1736310838095,0.3608,96542.0,96541.0,0.03139341]
[1736310838295,0.3618,96542.0,96541.0,0.03239341]
[1736310838796,0.3628,96542.0,96541.0,0.03239341]
[1736310840291,0.002,96542.0,96541.0,0.03239341]
[1736310841690,0.3628,96542.0,96541.0,0.03239341]
[1736310842292,0.8628,96542.0,96541.0,0.00255345]
[1736310842700,0.3628,96542.0,96541.0,0.00255345]
[1736310842890,0.8628,96542.0,96541.0,0.00255345]
[1736310843092,0.3628,96542.0,96541.0,0.00255345]
[1736310843500,0.8618,96542.0,96527.0,0.3608]
[1736310843691,0.8618,96542.0,96541.0,0.001]
[1736310843692,0.3628,96542.0,96541.0,0.001]
[1736310843997,0.8628,96542.0,96541.0,0.001]
[1736310844199,0.3628,96542.0,96541.0,0.001]
[1736310844392,0.3628,96542.0,96530.0,0.03701206]
[1736310844703,0.3628,96542.0,96520.0,0.06770468]
[1736310844704,0.3608,96531.0,96520.0,0.06770468]
[1736310844995,0.3608,96531.0,96513.0,0.4772]
[1736310844996,0.3608,96521.0,96513.0,0.00144]
[1736310845199,0.8608,96521.0,96510.0,0.06925883]
[1736310845393,0.5,96520.0,96510.0,0.06925883]
[1736310845592,0.5,96520.0,96510.0,0.10491048]
[1736310845792,0.5,96511.0,96510.0,0.10491048]
[1736310845993,0.3608,96521.0,96510.0,0.0372058]
[1736310846193,0.06770468,96520.0,96510.0,0.0372058]
[1736310846394,0.8608,96521.0,96510.0,0.10491048]
[1736310846693,0.3608,96513.0,96510.0,0.0372058]
[1736310846894,0.3608,96513.0,96500.0,0.1]
[1736310847095,0.5,96503.0,96500.0,0.16770468]
[1736310847295,0.5,96503.0,96500.0,0.1]
[1736310847596,0.5,96503.0,96500.0,0.13710689]
[1736310848005,0.3608,96501.0,96500.0,0.1]
[1736310848207,0.3608,96501.0,96481.0,0.121]
[1736310848399,0.3608,96501.0,96474.0,0.2206]
[1736310848600,0.3608,96486.0,96474.0,0.2206]
[1736310848903,0.5,96476.0,96470.0,0.10326721]
[1736310849404,0.5,96476.0,96469.0,0.46492]
[1736310849405,0.8608,96476.0,96473.0,0.03836975]
[1736310849602,0.2339,96475.0,96473.0,0.00155464]
[1736310850304,0.7339,96475.0,96473.0,0.00155464]
[1736310850504,0.7339,96475.0,96461.0,0.2206]
[1736310850505,0.5,96466.0,96461.0,0.2206]
[1736310850693,0.3608,96462.0,96461.0,0.2206]
[1736310851098,0.3608,96462.0,96460.0,0.03593428]
[1736310851297,0.8608,96462.0,96440.0,0.51592021]
[1736310851600,0.8608,96462.0,96440.0,0.51736021]
[1736310851601,0.3608,96451.0,96440.0,0.51736021]
[1736310851802,0.3608,96451.0,96440.0,0.36224]
[1736310852110,0.3608,96451.0,96440.0,0.3608]
[1736310852303,0.8608,96451.0,96444.0,0.50207691]
[1736310852707,0.3608,96451.0,96444.0,0.50207691]
[1736310853111,0.3608,96451.0,96444.0,0.46492]
[1736310853309,1.2216,96451.0,96444.0,0.46492]
[1736310853503,0.7248,96450.0,96444.0,0.39234559]
[1736310853698,0.2248,96450.0,96444.0,0.39234559]
[1736310854010,0.83647518,96450.0,96444.0,0.39234559]
[1736310854411,0.33647518,96450.0,96444.0,0.39234559]
[1736310854616,0.83647518,96450.0,96444.0,0.39234559]
[1736310855003,0.2248,96450.0,96444.0,0.39234559]
[1736310855208,0.7258,96450.0,96444.0,0.39234559]
[1736310855411,0.2258,96450.0,96444.0,0.39234559]
[1736310855707,0.7258,96450.0,96444.0,0.39234559]
[1736310856107,0.2268,96450.0,96444.0,0.39234559]
[1736310856311,0.7268,96450.0,96444.0,0.39234559]
[1736310856808,0.2268,96450.0,96444.0,0.39234559]
[1736310857113,0.002,96450.0,96444.0,0.39234559]
[1736310857515,0.502,96450.0,96444.0,0.39234559]
[1736310857811,0.002,96450.0,96444.0,0.39234559]
[1736310858208,0.502,96450.0,96444.0,0.39234559]
[1736310858406,0.002,96450.0,96444.0,0.39234559]
[1736310858807,0.3608,96447.0,96444.0,0.39234559]
[1736310859418,0.5,96447.0,96444.0,0.44419559]
[1736310859608,0.5,96447.0,96445.0,0.1161]
[1736310859810,0.001,96447.0,96445.0,0.1161]
[1736310862204,0.002,96447.0,96445.0,0.1161]
[1736310863918,0.002,96447.0,96444.0,0.39234559]
[1736310875921,0.002,96447.0,96445.0,0.41265]
[1736310887022,0.002,96447.0,96445.0,0.05185]
[1736310887428,0.502,96447.0,96445.0,0.05185]
[1736310890825,0.502,96447.0,96442.0,0.03664231]
[1736310891035,0.502,96447.0,96432.0,0.46835542]
[1736310891325,0.5,96439.0,96432.0,0.50279148]
[1736310891529,0.5,96437.0,96432.0,0.50279148]
[1736310891828,0.339,96446.0,96432.0,0.50279148]
[1736310891829,0.3608,96440.0,96432.0,0.50279148]
[1736310892231,0.5,96437.0,96432.0,0.50279148]
[1736310892620,0.3608,96440.0,96432.0,0.50279148]
[1736310892826,0.5,96437.0,96432.0,0.50279148]
[1736310893227,0.3608,96440.0,96432.0,0.50279148]
[1736310893429,0.5,96437.0,96432.0,0.50279148]
[1736310893925,0.3618,96440.0,96432.0,0.50279148]
[1736310894127,0.5,96437.0,96432.0,0.50279148]
[1736310894324,0.001,96437.0,96432.0,0.50279148]
[1736310894524,0.501,96437.0,96432.0,0.50279148]
[1736310894923,0.001,96437.0,96432.0,0.50279148]
[1736310895130,0.501,96437.0,96432.0,0.50279148]
[1736310895430,0.001,96437.0,96432.0,0.50279148]
[1736310895629,0.002,96437.0,96432.0,0.50279148]
[1736310895825,0.11166831,96436.0,96432.0,0.50279148]
[1736310896020,0.11166831,96436.0,96432.0,0.41555974]
[1736310896428,0.11166831,96435.0,96432.0,0.41555974]
[1736310896932,0.61166831,96435.0,96432.0,0.41555974]
[1736310897325,0.11166831,96435.0,96432.0,0.41555974]
[1736310897519,0.61166831,96435.0,96432.0,0.41555974]
[1736310897924,0.001,96435.0,96432.0,0.41555974]
[1736310898128,0.501,96435.0,96432.0,0.41555974]
[1736310898325,0.001,96435.0,96432.0,0.41555974]
[1736310898738,0.502,96435.0,96432.0,0.41555974]
[1736310899237,0.002,96435.0,96432.0,0.41555974]
[1736310899422,0.502,96435.0,96432.0,0.41555974]
[1736310899737,0.002,96435.0,96432.0,0.41555974]
[1736310899930,0.11166831,96434.0,96432.0,0.41555974]
[1736310900523,0.61166831,96434.0,96433.0,0.3608]
[1736310900832,0.002,96435.0,96433.0,0.3608]
[1736310901133,0.001,96435.0,96433.0,0.412656]
[1736310901438,0.001,96434.0,96433.0,0.529156]
[1736310901738,0.001,96435.0,96433.0,0.529156]
[1736310901937,0.001,96434.0,96433.0,0.529156]
[1736310902234,0.002,96434.0,96433.0,0.529156]
[1736310902629,0.002,96434.0,96433.0,0.758456]
[1736310903726,0.001,96434.0,96433.0,0.758456]
[1736310904340,0.5,96444.0,96442.0,0.051851]
[1736310905232,0.5,96448.0,96446.0,0.05185]
[1736310905439,0.4930099,96455.0,96454.0,0.051845]
[1736310905631,0.5,96460.0,96454.0,0.3608]
[1736310905833,0.5,96460.0,96456.0,0.051844]
[1736310907237,0.11166831,96459.0,96456.0,0.051844]
[1736310907441,0.5,96455.0,96454.0,0.14933119]
[1736310907645,0.11166831,96459.0,96454.0,0.14933119]
[1736310907844,0.61166831,96459.0,96454.0,0.14933119]
[1736310908036,0.5,96459.0,96454.0,0.14933119]
[1736310908237,0.5,96455.0,96454.0,0.14933119]
[1736310908438,0.5,96455.0,96454.0,0.18119518]
[1736310909043,0.5,96456.0,96454.0,0.18119518]
[1736310909245,0.5,96456.0,96455.0,0.051845]
[1736310909545,0.001,96459.0,96455.0,0.051845]
[1736310909745,0.002,96459.0,96455.0,0.051845]
[1736310910544,0.001,96456.0,96455.0,0.051845]
[1736310910739,0.001,96459.0,96454.0,0.18219518]
[1736310910944,0.5,96475.0,96462.0,0.051841]
[1736310911242,0.5,96475.0,96455.0,0.3399]
[1736310911243,0.3608,96465.0,96455.0,0.32816721]
[1736310911434,0.5,96460.0,96455.0,0.10326721]
[1736310911630,0.5,96460.0,96455.0,0.10426721]
[1736310911631,0.001,96456.0,96455.0,0.10426721]
[1736310911846,0.002,96456.0,96455.0,0.001]
[1736310912237,0.002,96456.0,96454.0,0.23304018]
[1736310912446,0.001,96456.0,96455.0,0.001]
[1736310912843,0.001,96456.0,96454.0,0.12736799]
[1736310913147,0.5,96460.0,96459.0,0.051843]
[1736310913444,0.47346831,96465.0,96464.0,0.05184]
[1736310913944,0.47246831,96465.0,96464.0,0.05184]
[1736310914141,0.47246831,96465.0,96456.0,0.051844]
[1736310914336,0.5,96460.0,96456.0,0.051844]
[1736310914537,0.501,96460.0,96459.0,0.002]
[1736310914740,0.001,96460.0,96459.0,0.002]
[1736310915045,0.3618,96465.0,96464.0,0.002]
[1736310915437,0.8618,96465.0,96464.0,0.002]
[1736310915746,0.3618,96465.0,96464.0,0.002]
[1736310916443,0.47446831,96465.0,96464.0,0.003]
[1736310916642,0.97346831,96465.0,96464.0,0.001]
[1736310916837,0.47346831,96465.0,96464.0,0.001]
[1736310917038,0.97346831,96465.0,96464.0,0.001]
[1736310917239,0.97446831,96465.0,96464.0,0.004]
[1736310917441,0.47446831,96465.0,96464.0,0.004]
[1736310917748,0.8628,96465.0,96464.0,0.004]
[1736310917936,0.3628,96465.0,96464.0,0.004]
[1736310918340,0.8628,96465.0,96464.0,0.004]
[1736310918633,0.3618,96465.0,96464.0,0.003]
[1736310918840,0.8618,96465.0,96464.0,0.003]
[1736310919241,1.37440138,96465.0,96445.0,0.10500379]
[1736310919539,1.37540138,96465.0,96464.0,0.002]
[1736310920042,1.37440138,96465.0,96455.0,0.10326721]
[1736310920245,1.37440138,96465.0,96457.0,0.051844]
[1736310920646,1.37440138,96465.0,96464.0,0.001]
[1736310921148,1.37440138,96465.0,96458.0,0.051843]
[1736310921446,0.1123,96464.0,96455.0,0.10326721]
[1736310922034,0.1123,96464.0,96455.0,0.10322721]
[1736310922035,1.12490138,96464.0,96455.0,0.10322721]
[1736310922346,0.62490138,96464.0,96455.0,0.10322721]
[1736310922547,0.62590138,96464.0,96457.0,0.051844]
[1736310922845,1.12590138,96464.0,96457.0,0.051844]
[1736310923146,0.64008884,96463.0,96457.0,0.051844]
[1736310923354,0.64008884,96463.0,96454.0,0.10326721]
[1736310923646,0.64008884,96463.0,96436.0,0.18667466]
[1736310923647,0.5,96453.0,96447.0,0.051849]
[1736310923836,0.5,96453.0,96440.0,0.10326721]
[1736310923837,0.5,96453.0,96442.0,0.03250487]
[1736310924037,0.3608,96443.0,96442.0,0.00155508]
[1736310924941,0.8608,96443.0,96442.0,0.00155508]
[1736310925247,0.3608,96443.0,96442.0,0.00155508]
[1736310925643,1.22231205,96443.0,96442.0,0.00155508]
[1736310925950,0.72231205,96443.0,96442.0,0.00155508]
[1736310926152,1.22331205,96443.0,96442.0,0.00155508]
[1736310926738,1.22431205,96443.0,96442.0,0.00155508]
[1736310927248,1.22431205,96443.0,96442.0,0.05340708]
[1736310927554,0.72431205,96443.0,96442.0,0.05340708]
[1736310928344,0.72431205,96443.0,96442.0,0.051852]
[1736310928952,0.72331205,96443.0,96442.0,0.051852]
[1736310929148,0.72331205,96443.0,96442.0,0.051812]
[1736310930145,0.72331205,96443.0,96442.0,0.03202099]
[1736310931853,0.72331205,96443.0,96433.0,0.03084658]
[1736310932155,0.3608,96434.0,96433.0,0.051857]
[1736310932941,0.61064374,96434.0,96433.0,0.051857]
[1736310933952,0.61164374,96434.0,96433.0,0.051857]
[1736310935656,0.61264374,96434.0,96433.0,0.051857]
[1736310936841,0.72431205,96434.0,96433.0,0.051857]
[1736310937047,0.72431205,96434.0,96420.0,0.04599589]
[1736310937248,0.3608,96430.0,96420.0,0.04599589]
[1736310937654,0.25184374,96434.0,96433.0,0.051857]
[1736310937859,0.61264374,96434.0,96433.0,0.051817]
[1736310938359,0.60749213,96434.0,96433.0,0.051817]
[1736310938759,0.60649213,96434.0,96433.0,0.051817]
[1736310939654,0.60749213,96434.0,96433.0,0.051817]
[1736310942561,0.60749213,96434.0,96433.0,0.0825447]
[1736310943055,0.60749213,96434.0,96433.0,0.07152425]
[1736310944752,1.10749213,96434.0,96433.0,0.07152425]
[1736310945951,0.99582382,96434.0,96433.0,0.07152425]
[1736310947149,0.99582382,96434.0,96433.0,0.0307277]
[1736310947355,0.49582382,96434.0,96427.0,0.05186]
[1736310947755,0.49582382,96434.0,96428.0,0.051859]
[1736310947959,0.49582382,96434.0,96432.0,0.051857]
[1736310948160,0.13302382,96433.0,96432.0,0.051857]
[1736310949364,0.13402382,96433.0,96432.0,0.051857]
[1736310949965,0.13502382,96433.0,96432.0,0.051857]
[1736310950557,0.13502382,96433.0,96432.0,0.08241576]
[1736310951565,0.49582382,96433.0,96432.0,0.08241576]
[1736310952152,0.49582382,96433.0,96432.0,0.03055876]
[1736310952357,0.49582382,96433.0,96425.0,0.051861]
[1736310952358,0.99582382,96433.0,96418.0,0.07937466]
[1736310952562,0.3608,96419.0,96418.0,0.051865]
[1736310952764,0.34004,96419.0,96418.0,0.051865]
[1736310953263,0.34004,96419.0,96418.0,0.08377838]
[1736310953770,0.58473213,96419.0,96418.0,0.08377838]
[1736310954163,0.58473213,96419.0,96417.0,0.21446797]
[1736310954365,0.58473213,96419.0,96417.0,0.21306797]
[1736310954775,0.71221959,96419.0,96417.0,0.21306797]
[1736310954973,0.3608,96418.0,96417.0,0.03194157]
[1736310955175,0.3608,96418.0,96345.0,0.3608]
[1736310955176,0.05188,96390.0,96345.0,0.3608]
[1736310955469,0.7216,96370.0,96340.0,0.10326721]
[1736310955674,0.3608,96353.0,96350.0,0.10326721]
[1736310955870,0.34,96353.0,96343.0,0.15517221]
[1736310956071,0.34,96353.0,96343.0,0.10326721]
[1736310956072,0.31861001,96353.0,96343.0,0.10326721]
[1736310956469,0.31861001,96353.0,96343.0,0.15517221]
[1736310957176,0.31861001,96353.0,96344.0,0.051904]
[1736310957773,0.1719554,96352.0,96344.0,0.051904]
[1736310958172,0.1719554,96352.0,96343.0,0.10326721]
[1736310958374,0.3608,96345.0,96343.0,0.10326721]
[1736310958566,0.34,96345.0,96339.0,0.1169]
[1736310959570,0.1719554,96351.0,96347.0,0.051902]
[1736310959874,0.1719554,96351.0,96349.0,0.051901]
[1736310960073,0.1719554,96351.0,96350.0,0.1171]
[1736310960570,0.07630822,96351.0,96350.0,0.1171]
[1736310961167,0.0470554,96354.0,96351.0,0.0519]
[1736310962479,0.0480554,96354.0,96351.0,0.0519]
[1736310962672,0.0490554,96354.0,96351.0,0.08392146]
[1736310963065,0.00766754,96354.0,96353.0,0.051896]
[1736310963378,0.00766754,96354.0,96353.0,0.517496]
[1736310964062,0.3608,96376.0,96360.0,0.051892]
[1736310964267,0.3608,96366.0,96364.0,0.10326721]
[1736310964576,0.33812437,96368.0,96361.0,0.1085]
[1736310964770,0.33812437,96368.0,96362.0,0.051891]
[1736310965777,0.33912437,96368.0,96362.0,0.051891]
[1736310966877,0.30728727,96365.0,96364.0,0.05189]
[1736310967576,0.07030854,96365.0,96364.0,0.05189]
[1736310967777,0.17329727,96368.0,96367.0,0.051888]
[1736310968274,0.11166831,96375.0,96374.0,0.051884]
[1736310968469,0.07048547,96375.0,96374.0,0.412684]
[1736310968672,0.06548547,96375.0,96374.0,0.412684]
[1736310969382,0.09561374,96396.0,96390.0,0.051876]
[1736310969576,0.09561374,96396.0,96390.0,0.517516]
[1736310969884,0.5,96395.0,96390.0,0.517516]
[1736310970576,0.09561374,96396.0,96390.0,0.517516]
[1736310971276,0.09561374,96396.0,96390.0,0.46564]